Cogmind - Beta 16.1 @@@ ROGUE MODE // 2026.01.19 @ 13:21:07 Player: H3-MLN Result: Destroyed by F1-PGT(h) with Bolt Gun Performance ------------- Evolutions (0) 0 Regions Visited (4) 800 Robots Destroyed (23) 115 Value Destroyed (313) 313 Prototype IDs (16) 320 Alien Tech Used (0) 0 Bonus (1862) 1862 TOTAL SCORE: 3410 Bonus ------- Follower Combat Kills 40 Delivered SUBCON Basin 2000 Friendly Fire -178 Cogmind --------- Core Integrity 0/250 Matter 300/300 Energy 100/100 System Corruption 0% Temperature Cool (0) Movement Flying (35) Location -7/Scraptown Parts ------- > --- POWER (1) -------- (None) > --- PROPULSION (2) --- Cesium-ion Thruster > --- UTILITY (2) ------ Makeshift Thermal Plating > --- WEAPON (2) ------- (None) > --- INVENTORY (5) ---- CPS Tube (2) Peak State ------------ > --- POWER ------------ Subdweller Power Source > --- PROPULSION ------- Cargo Legs > --- UTILITY ---------- Large Storage Unit Makeshift Kinetic Plating Makeshift Thermal Plating Tech Extrapolator > --- WEAPON ----------- Hammer Great Axe > --- INVENTORY -------- SUBCON Basin [Rating: 56] Favorites ----------- Power Subdweller Power Source Engine Subdweller Power Source Propulsion Cargo Legs Treads Light Treads Leg Cargo Legs Wheel Compact Wheel Flight Unit Cesium-ion Thruster Utility Large Storage Unit Device Seismic Detector Storage Large Storage Unit Processor Tech Extrapolator Protection Makeshift Thermal Plating Weapon Great Axe Energy Gun Heavy Riot Gun Ballistic Gun Assault Rifle Ballistic Cannon Battle Cannon Special Weapon CPS Tube Impact Weapon Powered Hammer Slashing Weapon Great Axe Build | -11 -10 -10 -7 -7 ------- Run | Yrd Mat Sub Rec Scr Slots Evolved . | . . . . . Power . | . . . . . Propulsion . | . . . . . Utility . | . . . . . Weapon . | . . . . . Parts Attached 36 | 7 3 17 3 6 Power 4 | 1 . 3 . . Engine 4 | 1 . 3 . . Core . | . . . . . Reactor . | . . . . . Propulsion 7 | 2 . 3 . 2 Treads 1 | 1 . . . . Leg 1 | . . 1 . . Wheel 3 | 1 . 2 . . Hover . | . . . . . Flight 2 | . . . . 2 Utility 8 | 2 1 3 1 1 Device 2 | 1 . . . 1 Storage 2 | 1 1 . . . Processor 1 | . . . 1 . Hackware . | . . . . . Protection 3 | . . 3 . . Artifact . | . . . . . Weapon 17 | 2 2 8 2 3 Energy Gun 2 | 1 . 1 . . Energy Cannon . | . . . . . Ballistic Gun 9 | 1 2 6 . . Ballistic Cannon 1 | . . 1 . . Launcher . | . . . . . Special Weapon 2 | . . . . 2 Impact Weapon 2 | . . . 1 1 Slashing Weapon 1 | . . . 1 . Piercing Weapon . | . . . . . Special Melee Weapon . | . . . . . Unidentified Prototypes . | . . . . . Parts Lost 6 | . . 4 . 2 Power . | . . . . . Propulsion 2 | . . 1 . 1 Utility 1 | . . . . 1 Weapon 3 | . . 3 . . Highest Loss Streak 2 | . . 2 . 2 To Critical Strikes . | . . . . . Average Backups 6 | 3 6 10 7 3 Power . | . 1 1 . . Propulsion 1 | 1 2 2 . 1 Utility 1 | . . 1 4 1 Weapon 2 | . 3 5 1 . Tool/Special . | . . . . . Unused Backups 45 | . 2 12 14 17 Power 2 | . . 1 1 . Propulsion 11 | . 1 4 1 5 Utility 22 | . . 3 10 9 Weapon 9 | . 1 4 2 2 Tool/Special 1 | . . . . 1 Average Slot Usage (%) 89 | . 99 94 87 84 Engine 9 | . 14 13 11 5 Treads 1 | . 14 3 . . Leg 5 | . . 3 11 5 Wheel 6 | . 14 16 . . Flight 6 | . . . . 14 Device 2 | . 14 3 . . Storage 10 | . 14 13 11 7 Processor 5 | . . . . 12 Protection 16 | . . 14 32 13 Energy Gun 1 | . 4 5 . . Ballistic Gun 11 | . 23 18 18 2 Special Weapon 1 | . . . . 3 Impact Weapon 4 | . . . 3 10 Slashing Weapon 3 | . . . . 8 Peak Build Rating 56 | 8 8 53 56 56 Average Rating 28 | 5 7 22 40 31 On Entrance 25 | . 8 8 53 56 Avg Prop Armor Cover (%) 12 | 15 12 11 . . Naked Turns . | . . . . . Heaviest Build 47 | 13 30 47 46 43 Greatest Support 55 | 16 16 55 55 55 Greatest Overweight (x) 2 | . 1 2 . 2 Average Overweight (x) . | . . . . . Largest Inventory Capacity 15 | 8 15 15 15 15 Average Capacity 13 | 6 10 15 15 11 Most Carried 15 | 7 9 15 15 15 Average Carried 8 | 4 7 12 10 4 Final Capacity 15 | 8 15 15 15 5 Final Carried 15 | 7 9 15 15 1 Class Distribution -------------------- 66% | Mutant 19% | Derelict-Mutant 13% | Sprinter Dominant Class ---------------- Mutant | -10/Materials Mutant | -10/Subcaves Derelict-Mutant | -7/Recycling Mutant | -7/Scraptown Resources | -11 -10 -10 -7 -7 ----------- Run | Yrd Mat Sub Rec Scr Matter Collected 1588 | 277 20 456 730 105 Remotely . | . . . . . Salvage Created 1133 | 101 . 312 685 35 Parts 46 | 7 . 29 8 2 Haulers Intercepted . | . . . . . Recyclers Shooed 3 | . . . 3 . Parts Field Recycled . | . . . . . Retrieved Matter . | . . . . . Parts Self-Destructed 21 | . . 21 . . Prevented 2 | . . 2 . . Parts Restored . | . . . . . Kills | -11 -10 -10 -7 -7 ------- Run | Yrd Mat Sub Rec Scr Combat Hostiles Destroyed 12 | . . 12 . . Guns 9 | . . 9 . . Cannons 2 | . . 2 . . AOE 1 | . . 1 . . Classes Destroyed 8 | 2 . 4 . 2 Tunneler 2 | 2 . . . . Recycler 9 | 1 . . 8 . Swarmer 8 | . . 8 . . Sentry 1 | . . 1 . . Artisan 1 | . . 1 . . Subdweller 3 | . . 3 . . Botcube 1 | . . . . 1 Tinkerer 1 | . . . . 1 Best Kill Streak 3 | 3 . 3 2 . Combat Bots Only 3 | . . 3 . . Max Kills in Single Turn 1 | 1 . 1 1 1 Gunslinging . | . . . . . Exploded 1 | . . 1 . . Melee . | . . . . . Uniques/NPCs Destroyed . | . . . . . Combat | -11 -10 -10 -7 -7 -------- Run | Yrd Mat Sub Rec Scr Hostile Shots Fired 172 | . . 130 9 33 Missed 70 | . . 49 3 18 Hits 102 | . . 81 6 15 Projectile 102 | . . 81 6 15 AOE 5 | . . 5 . . Critical Strikes 1 | . . . . 1 Damage Taken 1313 | . . 1076 43 194 Core 258 | . . 205 4 49 Absorbed by Shields . | . . . . . Ignored by Resistances 29 | . . 3 9 17 Core Remaining (%) 100 | 100 . . . . Volleys Fired 82 | 7 . 66 6 3 Largest 2 | 2 . 2 2 1 Hottest 93 | 60 . 93 55 5 Shots Fired 145 | 14 . 116 12 3 Gun 119 | 14 . 93 12 . Cannon 23 | . . 23 . . Launcher . | . . . . . Special 3 | . . . . 3 Kinetic 107 | 7 . 88 12 . Thermal 7 | 7 . . . . Explosive . | . . . . . Electromagnetic 28 | . . 28 . . Robot Hit Streak 9 | 3 . 8 6 9 Robot Miss Streak 10 | 2 . 10 1 . Penetration Max . | . . . . . Secondary Targets 1 | . . 1 . . Max Gunslinging Chain 1 | . . 1 . . Shots Hit Robots 98 | 7 . 58 25 8 Core Hits 28 | 4 . 19 4 1 Critical Kills 1 | . . . 1 . Critical Parts Destroyed 2 | . . . 2 . Critical Strikes 5 | . . 1 3 1 Blast 1 | . . 1 . . Smash 3 | . . . 3 . Sever 1 | . . . . 1 Melee Attacks 23 | . . . 17 6 Impact 19 | . . . 17 2 Slashing 4 | . . . . 4 Piercing . | . . . . . Sneak Attacks 15 | . . . 10 5 Combat Hostiles . | . . . . . Follow-up Attacks . | . . . . . Damage Inflicted 2343 | 75 . 997 880 391 Guns 989 | 75 . 772 142 . Cannons 178 | . . 178 . . Explosions 47 | . . 47 . . Melee 1129 | . . . 738 391 Ramming . | . . . . . Kinetic 852 | 45 . 665 142 . Thermal 77 | 30 . 47 . . Explosive . | . . . . . Electromagnetic 285 | . . 285 . . Impact 843 | . . . 738 105 Slashing 286 | . . . . 286 Piercing . | . . . . . Highest Corruption . | . . . . . Average Corruption . | . . . . . Corruption Purged . | . . . . . Corruption Blocked . | . . . . . Overload Shots . | . . . . . Overflow Damage 323 | . . 23 164 136 Projectiles 3 | . . 3 . . Explosions 20 | . . 20 . . Melee 300 | . . . 164 136 Knockbacks 7 | . . 3 4 . Impact 4 | . . . 4 . Kinetic 3 | . . 3 . . Secondary . | . . . . . Self-Inflicted Damage 20 | . . 20 . . Shots 1 | . . 1 . . Rammed . | . . . . . Targets Rammed . | . . . . . Kicked . | . . . . . Crushed . | . . . . . Highest Temperature 42 | 40 . 30 42 8 Average Temperature 15 | 20 . 13 17 8 Received Heat Transfer 243 | . . 165 18 60 Siege Activations . | . . . . . Martial Activations . | . . . . . Shielding Activations . | . . . . . Robots Disrupted . | . . . . . Combat Hostiles . | . . . . . Robots Corrupted 3 | . . . 3 . Combat Hostiles . | . . . . . Parts Fried 9 | . . . 8 1 Impact Corruptions 10 | . . . 8 2 Robots Melted . | . . . . . Combat Hostiles . | . . . . . Parts Melted . | . . . . . Heat Transferred 125 | 75 . 50 . . Parts Sabotaged . | . . . . . Parts Stolen . | . . . . . Parts Stripped . | . . . . . Power Chain Reactions 1 | . . 1 . . Alert | -11 -10 -10 -7 -7 ------- Run | Yrd Mat Sub Rec Scr Maximum Alert Level 5 | . . . 5 . Low Security (%) 28 | 100 100 . . . Level 1 . | . . . . . Level 2 . | . . . . . Level 3 . | . . . . . Level 4 . | . . . . . Level 5 71 | . . . 100 . High Security . | . . . . . Max Security . | . . . . . Peak Influence 3661 | 10 3 . 3661 . Initial 3619 | . 3 . 3619 . Average 2464 | 1 . . 3423 . Influence Increases 7965 | 15 . 7840 110 . Destroy 0b10 Robot/C 200 | . . 180 20 . Destroy 0b10 Robot/NC 60 | 15 . . 45 . Destroy Leader 10 | . . 10 . . Allied During Kill 2 | . . . 2 . Successful Hack 13 | . . . 13 . Select Force Hacks 30 | . . . 30 . Lose Combat Pursuer 7650 | . . 7650 . . Influence Decreases 7965 | 10 5 298 4405 3247 Entered New Map 7172 | . 2 . 3923 3247 Time Decay 783 | 10 3 288 482 . Lost Part 10 | . . 10 . . Squads Dispatched . | . . . . . Investigation . | . . . . . Extermination . | . . . . . Reinforcement . | . . . . . Assault . | . . . . . Garrison . | . . . . . Intercept . | . . . . . Searches Triggered . | . . . . . Construction Impeded . | . . . . . Haulers Reinforced . | . . . . . Active Scanning Responses . | . . . . . Cargo Convoy Interrupts . | . . . . . Stealth | -11 -10 -10 -7 -7 --------- Run | Yrd Mat Sub Rec Scr Distress Signals . | . . . . . Communications Jammed . | . . . . . Distress Signals . | . . . . . Times Spotted 504 | . . 486 1 17 Peak Tracking Total 26 | . . 4 1 26 Tactical Retreats 20 | . . 20 . . Traps | -11 -10 -10 -7 -7 ------- Run | Yrd Mat Sub Rec Scr Traps Triggered . | . . . . . Indirectly . | . . . . . Trap Hack Attempts . | . . . . . Triggered . | . . . . . Disarmed . | . . . . . Reprogrammed . | . . . . . Reused 1 | . . 1 . . Traps Extracted . | . . . . . Installed 1 | . . 1 . . Triggered 1 | . . 1 . . Most Traps Carried 1 | . . 1 . . Machines | -11 -10 -10 -7 -7 ---------- Run | Yrd Mat Sub Rec Scr Machines Disabled 6 | . . 3 . 3 Max in Single Turn 1 | . . 1 . 1 Machines Repaired . | . . . . . Machines Dismantled . | . . . . . Machines Sabotaged . | . . . . . Overloaded Fab Kills . | . . . . . Hacking | -11 -10 -10 -7 -7 --------- Run | Yrd Mat Sub Rec Scr Machines Accessed 10 | . 1 3 6 . Terminals 4 | . 1 . 3 . Fabricators . | . . . . . Repair Stations . | . . . . . Recycling Units 3 | . . . 3 . Scanalyzers . | . . . . . Garrison Access . | . . . . . Total Hacks 18 | . 2 3 13 . Successful 10 | . . 3 7 . Failed 8 | . 2 . 6 . Catastrophic 6 | . 2 . 4 . Database Lockouts . | . . . . . Manual 10 | . 2 . 8 . Terminals 8 | . 2 . 6 . Fabricators . | . . . . . Repair Stations . | . . . . . Recycling Units 7 | . . . 7 . Scanalyzers . | . . . . . Garrison Access . | . . . . . Terminal Hacks 5 | . . 3 2 . Part Schematic 1 | . . . 1 . Open Door 1 | . . 1 . . Terminal Index 1 | . . . 1 . Proto ID Catalog 1 | . . 1 . . Release Object 1 | . . 1 . . Fabricator Hacks . | . . . . . Repair Station Hacks . | . . . . . Recycling Unit Hacks 4 | . . . 4 . Report Inventory 2 | . . . 2 . Retrieve Components 2 | . . . 2 . Scanalyzer . | . . . . . Garrison Access Hacks . | . . . . . Unauthorized Hacks 1 | . . . 1 . Terminals . | . . . . . Fabricators . | . . . . . Repair Stations . | . . . . . Recycling Units 1 | . . . 1 . Tunnel 1 | . . . 1 . Scanalyzers . | . . . . . Garrison Access . | . . . . . Data Cores Recovered . | . . . . . Used . | . . . . . Hacking Detections 6 | . 1 . 5 . Full Trace Events 1 | . . . 1 . Feedback Events . | . . . . . Feedback Blocked . | . . . . . Robot Schematics Acquired . | . . . . . Robots Built . | . . . . . Authchips . | . . . . . Time . | . . . . . Total Robot Build Rating . | . . . . . Part Schematics Acquired 9 | . . . 1 8 Parts Built . | . . . . . Authchips . | . . . . . Time . | . . . . . Total Part Build Rating . | . . . . . Part Studies Acquired . | . . . . . Parts Repaired . | . . . . . Time . | . . . . . Parts Recycled . | . . . . . Recycled Matter . | . . . . . Retrieved Matter . | . . . . . Retrieved Components 6 | . . . 6 . Parts Scanalyzed . | . . . . . Part Schematics Acquired . | . . . . . Parts Damaged . | . . . . . Bothacking | -11 -10 -10 -7 -7 ------------ Run | Yrd Mat Sub Rec Scr Used RIF Installer . | . . . . . Robots Hacked 1 | . . . . 1 Non-combat . | . . . . . Combat 1 | . . . . 1 Robot Hacks Applied 1 | . . . . 1 parse_system 1 | . . . . 1 Relay Couplers Released . | . . . . . Fabnet Peak Effective % . | . . . . . Robots Rewired . | . . . . . Allies Hacked . | . . . . . Hacks Repelled . | . . . . . Allies | -11 -10 -10 -7 -7 -------- Run | Yrd Mat Sub Rec Scr Total Allies 2 | . . 1 . 1 Largest Group 1 | . . 1 1 1 Highest-Rated Group 56 | . . 30 30 56 Highest-Rated Ally 56 | . . 30 30 56 Total Orders 4 | . . . 2 2 STAY 3 | . . . 1 2 FOLLOW 1 | . . . 1 . Ally Attacks 10 | . . . 2 8 Total Damage 486 | . . . 39 447 Kills 6 | . . . 1 5 Allies Corrupted . | . . . . . Allies Melted . | . . . . . Intel | -11 -10 -10 -7 -7 ------- Run | Yrd Mat Sub Rec Scr Active Infowar (turns) 950 | 24 390 536 . . Seismic 950 | 24 390 536 . . Robot Analysis Total . | . . . . . Derelict Logs Recovered 2 | . . 1 . 1 Drone Launches . | . . . . . Drone Recoveries . | . . . . . Exploration | -11 -10 -10 -7 -7 ------------- Run | Yrd Mat Sub Rec Scr Turns Passed 7258 | 99 390 2411 1255 3103 Spaces Moved 4574 | 66 162 1213 833 2300 Core 8 | 8 . . . . Treads . | . . . . . Legs 2215 | . . 236 833 1146 Wheels 1197 | 58 162 977 . . Hover . | . . . . . Flight 1154 | . . . . 1154 Fastest Speed 32 | 50 100 105 130 32 Average Speed 108 | 93 105 113 130 97 Slowest Speed 192 | 100 115 130 130 192 Overloaded Moves . | . . . . . Propulsion Burnouts . | . . . . . Robots Hopped 2 | . . . . 2 Potential Cave-ins . | . . . . . Cave-ins Triggered . | . . . . . Exploration Rate (%) 38 | 4 25 52 55 58 Regions Visited 4 Branch Regions 3 Pre-discovered Areas 2 | . . 1 1 . Known Exits Taken . | . . . . . Unknown Exits Taken 4 | 1 1 1 1 . Scrap Searched 13 | . . 6 . 7 Spaces Dug 1 | . . 1 . . Terrain Destroyed 5 | . . 5 . . Melee . | . . . . . Projectile 2 | . . 2 . . AOE 3 | . . 3 . . Terrain Rammed . | . . . . . Walls Destroyed . | . . . . . Machines Disabled . | . . . . . Actions | -11 -10 -10 -7 -7 --------- Run | Yrd Mat Sub Rec Scr Total 6735 | 87 382 2142 976 3148 Wait 1844 | 1 209 793 65 776 Move 4566 | 65 161 1212 832 2296 Hop 2 | . . . . 2 Pick Up 83 | 7 4 21 25 26 Fast Attach 13 | 6 1 3 2 1 Attach 14 | 1 . 6 1 6 Detach . | . . . . . Swap 17 | . 2 11 1 3 Drop 90 | . 5 29 27 29 Fire 82 | 7 . 66 6 3 Melee 23 | . . . 17 6 Ram . | . . . . . Kick . | . . . . . Crush . | . . . . . Escape Stasis . | . . . . . Rewire . | . . . . . Trap 1 | . . 1 . . Miscellaneous . | . . . . . Route ------- -11/Scrapyard -10/Materials -10/Subcaves (discovered 2 exits: [*Mat] / *Rec) -7/Recycling -7/Scraptown (discovered 1 exit: [*Fac]) History --------- Turn | Location | Event 3 | -11/Scrapyard | Discovered new exit (range 16) 100 | -11/Scrapyard | Entered Materials 315 | -10/Materials | Build established: Mutant 485 | -10/Materials | Discovered new exit (range 6) 490 | -10/Materials | Entered Subcaves 494 | -10/Subcaves | Learned location of 1 exit from Materials 722 | -10/Subcaves | Learned location of Zion (-7) 722 | -10/Subcaves | Met a Zionite searching for "candidates" 807 | -10/Subcaves | Shifting Twisted Machinery released Battle Rifle 824 | -10/Subcaves | Shifting Twisted Machinery released Mak. Light Armor Plating 954 | -10/Subcaves | Discovered new exit (range 16) 1134 | -10/Subcaves | Shifting Twisted Machinery released Sub. Power Source 1138 | -10/Subcaves | Shifting Twisted Machinery released Sub. Machine Gun 1531 | -10/Subcaves | Curiously followed by a Cobbler waking with a query about "LVR3C" 1584 | -10/Subcaves | Core integrity fell below 50% 1627 | -10/Subcaves | Discovered new exit (range 10) 1630 | -10/Subcaves | Core integrity fell below 20% 2179 | -10/Subcaves | Visited 4L-MR0's lab 2199 | -10/Subcaves | Found Cargo Legs 2200 | -10/Subcaves | Attached Cargo Legs, gained temporary slots: Utility x2 2627 | -10/Subcaves | Botcube activated 2639 | -10/Subcaves | Botcube completed mutation into flying form, armed with 2 guns. 2663 | -10/Subcaves | Found SUBCON Basin 2688 | -10/Subcaves | Build established: Derelict-Mutant 2901 | -10/Subcaves | Entered Recycling 2901 | -7/Recycling | Accompanied by 1 ally 3140 | -7/Recycling | Scanned before Scraplab entrance 3161 | -7/Recycling | Entered Scraplab 4067 | -7/Recycling | Build established: Mutant 4115 | -7/Recycling | Discovered new exit (range 2) 4156 | -7/Recycling | Entered Scraptown 4156 | -7/Scraptown | Accompanied by 1 ally 4206 | -7/Scraptown | Visited IN-MT5's Study 4220 | -7/Scraptown | Visited Awakened 4242 | -7/Scraptown | Turned away by UFD registrar 4260 | -7/Scraptown | Visited The Evicted 4280 | -7/Scraptown | Visited Assassins FH 4299 | -7/Scraptown | Visited TADAMA 4332 | -7/Scraptown | Scanned Subdweller tech in exchange for log data 4336 | -7/Scraptown | Learned location of 2 exits from Lower Caves 4357 | -7/Scraptown | Discovered new exit (range 5) 4504 | -7/Scraptown | Heard Great Nut preacher, LISTEN AND RECITE! 4545 | -7/Scraptown | Tech Extrapolator generated special schematic: Machine Rigger 4752 | -7/Scraptown | Visited Bundlers 4812 | -7/Scraptown | Visited Shadow of the Wyrm 4829 | -7/Scraptown | Tech Extrapolator generated special schematic: Deep Structural Scanner 5648 | -7/Scraptown | Attached CPS modules to *Swarmer. 5662 | -7/Scraptown | Murdered *Swarmer 5662 | -7/Scraptown | Destroyed *Swarmer 5690 | -7/Scraptown | Found Botcube 6148 | -7/Scraptown | Botcube activated 6172 | -7/Scraptown | Botcube completed mutation into treaded form, armed with 1 cannon, 1 launcher. 6184 | -7/Scraptown | Attached CPS modules to *Terminator. 6508 | -7/Scraptown | Build established: Sprinter 7240 | -7/Scraptown | Attacked by Scraptown defenders 7259 | -7/Scraptown | Destroyed by F1-PGT(h) with Bolt Gun Last Messages --------------- 07236_ Dropped Imp. Trap Extractor. 07239_ Sneak attack on IN-MT5. 07239_ Destroyed Recalibrator. 07239_ Destroyed Gravmag System. 07239_ IN-MT5 system corrupted by crushing effect. 07239_ Lgt. Nuclear Core fried. 07239_ IN-MT5 destroyed. 07240_ ANNOUNCEMENT: Intruder alert! Defend Scraptown! 07243_ IN-MT5's Safe breached. 07246_ Extracted schematic archive: IN-MT5's Pitchfork "Insurrection". 07250_ Slug penetrates VW-AJK(g). 07250_ VW-AJK(g) destroyed. 07251_ Cesium-ion Thruster destroyed. 07251_ Dropped Assault Rifle. 07252_ Dropped Powered Hammer. 07253_ 7L-LY6(h): "Scrapalicious!" 07253_ Penetrated by Bolt. 07253_ Reaction Control System destroyed. 07255_ Bolt penetrates Wall. 07255_ Penetrated by Bolt. Map ----- +----------------------------------------------------+ | ###### ######????## ##????????#" "#? | | #""""" """""#####?# #########?#" ""#? | | #" " " #?# """"""""#?#" """#? | | #""" ""#" " " "### ### " ""#?#" """#? | | #""" "#" " " "#"" """ "#?#"""""""#? | | #""" "#""""" """""#" """ " ""#?#########? | | #"" "###### ######" " """"""""#??????????? | | #? "#""""" """""#" ##"""####?????###?## | | #?"" ""#" " " "#" "" " ############?#"""""" | | #?## ###" " " "#" " #?# #?#"" " " | | #??# " " "#"""""" ### ###"""" | | #??#####""""" """""####### ##" "##"" "" | | ##?????###### ######?????# c##""""""""""##" "" | | ############ ############ k#" "#" " | | c#" "#" | | #" "#""" | | ######################### # #""" | | ##??????????????????????# # #"" | | ########?????#########?### ### ############ ### | | """""""#?????# ?# k z | | " "#?????# # Ez | | ![! "#?????? """ # k | | " = / "#?????? """ r p | | " ! "#?????? """ # | | " "#??????? """ # g################# | | " ! "#?????? " ?#@ #???????????????# | | " /! "#?????# ?# c h ################# | | " "#?????# ??# # " """" "" ""## | | """" ""#?????########??# # " %" "## | | #### ###???????????????# h # ## | | #### ###???????????????# # [""## | | """" ""#???????????????# # ! "## | | " "#???????????????# # [ !""## | | " "" "#???????????????# # ## #### | | " "" "#???????????????# # #! ## | | " "#???????????????# x # # ![## | | ""#????????#####??# =*[[ !!#!/ [## | | " """""#??????###" ??# k# " " " "# ## | | """""""#??????# ?# # """ """#! ## | | """""""???????##" ?#b ################# | | ######????????# # g ################# | | ########??????# # | | #"""X""#???????#" | | #" "#??????# # /[ | | #" "#??????###" # | | #" "#????????######## | | #" "#????????## | | #" "#????????# != | | #"" """###########/ = | *%[ | | ######"##### ####### ####### | +----------------------------------------------------+ Best States ------------- Heat Dissipation 25 Energy Generation 15 Energy Capacity 250 Matter Stores 300 Matter Capacity 300 Sight Range 16 Terrain Scan Density 10 Armor Coverage 300 Resistance: KI 10 Resistance: TH 10 Evasion (%) 71 Recoil Reduction 1 Authchip Count 2 Item Schematics ----------------- Huge Storage Unit | -7/Recycling | Hacked Mak. Leg | -7/Scraptown | Extrapolated Spk. Treads | -7/Scraptown | Extrapolated Mak. Coolant Network | -7/Scraptown | Extrapolated Mak. Light Armor Plating | -7/Scraptown | Extrapolated Machine Rigger | -7/Scraptown | Extrapolated Mak. Thermal Plating | -7/Scraptown | Extrapolated Deep Structural Scanner | -7/Scraptown | Extrapolated IN-MT5's Pitchfork "Insurrection" | -7/Scraptown | Archive Robot Schematics ------------------ None Fabricated ------------ Nothing Repaired ---------- Nothing Studied --------- None Alien Tech Used ----------------- None Achievements -------------- None Challenges ------------ None Game ------ Seed InterceptArmageddonSink Manual? 0 Play Time 00:42:56 Cumulative 1261.7 hours Start 2026.01.19 @ 12:31:09 End 2026.01.19 @ 13:21:07 Sessions 3 Manual Loads 0 Difficulty Rogue Special Mode None Game No. 430 Rogue 425 Adventurer 4 Explorer 1 Win Type - Total 28 Types 15/5/1/2/0/1/1/0/2/1 Lore% 97 Gallery% 96 Achievement% 83 Wizard Run 0 Options --------- Layout 0 ASCII 0 Keyboard 0 Movement Numpad Keybinds 0 Fullscreen 2 Font 18/SmallcapsGlow Map View 76x50 Zoom Use 0% Tactical HUD 1 Map Filters NONE Filters NONE Steam 1 RUN: 53fe6626-cb57-4d09-abba-84a1b45a6224